lending/lending_fUSD_20260310
["ID","MTS","AMOUNT","RATE_DAILY","PERIOD"]
[408136473,1773163865815,-500.0,0.00019726,2]
[408136474,1773163865825,-1271.98,0.00019726,2]
[408136475,1773163865835,-672.85,0.00019726,2]
[408136476,1773163865845,-500.0,0.00019726,2]
[408136477,1773163865857,-599.82037508,0.00019726,2]
[408136478,1773163865867,-2888.80122937,0.00019726,2]
[408136479,1773163867438,-1256.91365521,0.00018988,2]
[408136480,1773163867450,-676.87939562,0.00018988,2]
[408136481,1773163868750,-527.20694917,0.00018988,2]
[408136482,1773163868760,-552.0,0.000192,2]
[408136483,1773163868770,-991.90651655,0.00019665,2]
[408136484,1773163868783,-2553.51021575,0.00019665,2]
[408136485,1773163868799,-1037.05307085,0.00019665,2]
[408136486,1773163868810,-428.3454206,0.00019681,2]
[408136487,1773163868820,-1556.20877063,0.00019726,2]
[408136488,1773163868830,-1271.98,0.00019726,2]
[408136489,1773163868839,-504.53,0.00019726,2]
[408136490,1773163868849,-500.0,0.00019726,2]
[408136491,1773163868863,-656.07,0.00019726,2]
[408136492,1773163868873,-500.0,0.00019726,2]
[408136493,1773163868882,-672.85,0.00019726,2]
[408136494,1773163868892,-500.0,0.00019726,2]
[408136495,1773163868903,-4445.01,0.00019726,2]
[408136496,1773163868913,-1271.98,0.00019726,2]
[408136497,1773163868924,-656.07,0.00019726,2]
[408136498,1773163868935,-504.53,0.00019726,2]
[408136499,1773163868944,-500.0,0.00019726,2]
[408136500,1773163868954,-672.85,0.00019726,2]
[408136501,1773163868965,-1585.48,0.00019726,2]
[408136502,1773163868976,-500.0,0.00019726,2]
[408136503,1773163868987,-4445.01,0.00019726,2]
[408136504,1773163868996,-1271.98,0.00019726,2]
[408136505,1773163869006,-504.53,0.00019726,2]
[408136506,1773163869015,-656.07,0.00019726,2]
[408136507,1773163869024,-672.85,0.00019726,2]
[408136508,1773163869034,-1585.48,0.00019726,2]
[408136509,1773163869043,-500.0,0.00019726,2]
[408136510,1773163869052,-500.0,0.00019726,2]
[408136511,1773163869061,-4445.01,0.00019726,2]
[408136512,1773163869071,-1271.98,0.00019726,2]
[408136513,1773163869080,-504.53,0.00019726,2]
[408136514,1773163869089,-672.85,0.00019726,2]
[408136515,1773163869098,-1585.48,0.00019726,2]
[408136516,1773163869107,-500.0,0.00019726,2]
[408136517,1773163869116,-500.0,0.00019726,2]
[408136518,1773163869126,-4445.01,0.00019726,2]
[408136519,1773163869135,-1272.03245522,0.00019726,2]
[408136520,1773163869144,-504.53,0.00019726,2]
[408136521,1773163869154,-500.0,0.00019726,2]
[408136522,1773163869163,-500.0,0.00019726,2]
[408136523,1773163869172,-500.0,0.00019726,2]
[408136524,1773163869181,-1585.48,0.00019726,2]
[408136525,1773163869190,-672.85,0.00019726,2]
[408136526,1773163869200,-656.07,0.00019726,2]
[408136527,1773163869209,-500.0,0.00019726,2]
[408136528,1773163869219,-504.53,0.00019726,2]
[408136529,1773163869229,-3379.17973927,0.00019726,2]
[408136530,1773163869245,-1065.83026073,0.00019726,2]
[408136531,1773163869255,-500.0,0.00019726,2]
[408136532,1773163869266,-500.0,0.00019726,2]
[408136533,1773163869275,-1585.48,0.00019726,2]
[408136534,1773163869285,-672.85,0.00019726,2]
[408136535,1773163869295,-656.07,0.00019726,2]
[408136536,1773163869305,-500.0,0.00019726,2]
[408136537,1773163869314,-500.0,0.00019726,2]
[408136538,1773163869324,-4445.01,0.00019726,2]
[408136539,1773163869334,-1759.14457789,0.00019726,2]
[408136540,1773163869353,-1345.00163473,0.00019726,2]
[408136541,1773163869364,-852.68378738,0.00019726,2]
[408136542,1773163869373,-500.0,0.00019726,2]
[408136543,1773163869384,-500.0,0.00019726,2]
[408136544,1773163869394,-672.85,0.00019726,2]
[408136545,1773163869403,-656.07,0.00019726,2]
[408136546,1773163869413,-1585.48,0.00019726,2]
[408136547,1773163869423,-500.0,0.00019726,2]
[408136548,1773163869435,-500.0,0.00019726,2]
[408136549,1773163869443,-4445.01,0.00019726,2]
[408136550,1773163869455,-3956.83,0.00019726,2]
[408136551,1773163869464,-500.0,0.00019726,2]
[408136552,1773163869474,-577.15107886,0.00019726,2]
[408136553,1773163869483,-672.85,0.00019726,2]
[408136554,1773163869493,-504.53,0.00019726,2]
[408136555,1773163869502,-1585.48,0.00019726,2]
[408136556,1773163869511,-656.07,0.00019726,2]
[408136557,1773163869520,-500.0,0.00019726,2]
[408136558,1773163869530,-500.0,0.00019726,2]
[408136559,1773163869541,-4445.01,0.00019726,2]
[408136560,1773163869550,-500.0,0.00019726,2]
[408136561,1773163869559,-3956.83,0.00019726,2]
[408136562,1773163869570,-500.0,0.00019726,2]
[408136563,1773163869580,-504.53,0.00019726,2]
[408136564,1773163869589,-1585.48,0.00019726,2]
[408136565,1773163869599,-672.85,0.00019726,2]
[408136566,1773163869610,-500.0,0.00019726,2]
[408136567,1773163869621,-396.3356061,0.00019726,2]
[408136568,1773163869631,-656.07,0.00019726,2]
[408136569,1773163869641,-4445.01,0.00019726,2]
[408136570,1773163869651,-500.0,0.00019726,2]
[408136571,1773163869662,-3956.83,0.00019726,2]
[408136572,1773163869673,-424.39451517,0.00019726,2]
[408136573,1773163869683,-504.53,0.00019726,2]
[408136574,1773163869693,-1585.48,0.00019726,2]
[408136575,1773163869704,-672.85,0.00019726,2]
[408136576,1773163869715,-580.27031698,0.00019726,2]
[408136577,1773163869724,-4445.01,0.00019726,2]
[408136578,1773163869733,-3956.83,0.00019726,2]
[408136579,1773163869743,-656.07,0.00019726,2]
[408136580,1773163869754,-500.0,0.00019726,2]
[408136581,1773163869764,-504.53,0.00019726,2]
[408136582,1773163869773,-2947.56,0.00019726,2]
[408136583,1773163869784,-500.0,0.00019726,2]
[408136584,1773163869793,-672.85,0.00019726,2]
[408136585,1773163869803,-1585.48,0.00019726,2]
[408136586,1773163869814,-4445.01,0.00019726,2]
[408136587,1773163869823,-3956.83,0.00019726,2]
[408136588,1773163869831,-656.07,0.00019726,2]
[408136589,1773163869841,-500.0,0.00019726,2]
[408136590,1773163869851,-504.53,0.00019726,2]
[408136591,1773163869865,-2947.56,0.00019726,2]
[408136592,1773163869875,-423.36207367,0.00019726,2]
[408136593,1773163869886,-672.99795179,0.00019726,2]
[408136594,1773163869896,-1585.48,0.00019726,2]
[408136595,1773163869907,-3956.83,0.00019726,2]
[408136596,1773163869916,-579.31879774,0.00019726,2]
[408136597,1773163870365,-588.34026177,0.00016283,2]
[408136598,1773163870392,-588.34026177,0.00016283,2]
[408136599,1773163870420,-588.34026177,0.00016283,2]
[408136600,1773163870446,-588.34026177,0.00016283,2]
[408136601,1773163870473,-588.34026177,0.00016283,2]
[408136602,1773163870498,-588.34026177,0.00016283,2]
[408136603,1773163870526,-588.34026177,0.00016283,2]
[408136604,1773163870551,-588.34026177,0.00016283,2]
[408136605,1773163870574,-588.34026177,0.00016283,2]
[408136606,1773163870600,-588.34026177,0.00016283,2]
[408136607,1773163870624,-588.34026177,0.00016283,2]
[408136608,1773163870649,-588.34026177,0.00016283,2]
[408136609,1773163870674,-588.34026177,0.00016283,2]
[408136610,1773163870702,-588.34026177,0.00016283,2]
[408136611,1773163870725,-588.34026177,0.00016283,2]
[408136612,1773163870754,-588.34026177,0.00016283,2]
[408136613,1773163870778,-588.34026177,0.00016283,2]
[408136614,1773163870811,-588.34026177,0.00016283,2]
[408136615,1773163870838,-588.34026177,0.00016283,2]
[408136616,1773163870865,-588.34026177,0.00016283,2]
[408136617,1773163870890,-588.34026177,0.00016283,2]
[408136618,1773163870918,-588.34026177,0.00016283,2]
[408136619,1773163870944,-588.34026177,0.00016283,2]
[408136620,1773163870971,-588.34026177,0.00016283,2]
[408136621,1773163870998,-588.34026177,0.00016283,2]
[408136622,1773163871023,-588.34026177,0.00016283,2]
[408136623,1773163871055,-588.34026177,0.00016283,2]
[408136624,1773163871081,-588.34026177,0.00016283,2]
[408136625,1773163871108,-588.34026177,0.00016283,2]
[408136626,1773163871134,-588.34026177,0.00016283,2]
[408136627,1773163871161,-588.34026177,0.00016283,2]
[408136628,1773163871187,-588.34026177,0.00016283,2]
[408136629,1773163871212,-588.34026177,0.00016283,2]
[408136630,1773163871234,-619.0,0.00018988,2]
[408136631,1773163871257,-4582.46980315,0.00019704,2]
[408136632,1773163871285,-3865.69120226,0.00019726,2]
[408136633,1773163871308,-656.07,0.00019726,2]
[408136634,1773163871330,-500.0,0.00019726,2]
[408136635,1773163871354,-2947.56,0.00019726,2]
[408136636,1773163871376,-500.0,0.00019726,2]
[408136637,1773163871400,-504.53,0.00019726,2]
[408136638,1773163871423,-1585.48,0.00019726,2]
[408136639,1773163871447,-3956.83,0.00019726,2]
[408136640,1773163871471,-4445.01,0.00019726,2]
[408136641,1773163871495,-656.07,0.00019726,2]
[408136642,1773163871518,-500.0,0.00019726,2]
[408136643,1773163871542,-2947.56,0.00019726,2]
[408136644,1773163871563,-500.0,0.00019726,2]
[408136645,1773163871587,-504.53,0.00019726,2]
[408136646,1773163871608,-2313.97035618,0.00019726,2]
[408136647,1773163873049,-4953.85469342,0.00016282,2]
[408136648,1773163873072,-250.0,0.00016282,2]
[408136649,1773163873100,-5000.0,0.00016283,2]
[408136650,1773163873123,-5000.0,0.00017911,2]
[408136651,1773163873146,-2500.0,0.00017911,2]
[408136652,1773163873167,-200.0,0.00017911,2]
[408136653,1773163873189,-300.0,0.00017911,2]
[408136654,1773163873212,-250.0,0.00017911,2]
[408136655,1773163873235,-1473.35689195,0.00018076,2]
[408136656,1773163873259,-2558.76614139,0.00018076,2]
[408136657,1773163873283,-539.0,0.00018743,2]
[408136658,1773163873304,-1042.0,0.00018988,2]
[408136659,1773163873326,-414.0,0.00018988,2]
[408136660,1773163873347,-1279.0,0.00018988,2]
[408136661,1773163873368,-3957.85580899,0.00019626,2]
[408136662,1773163873391,-1642.85964382,0.00019726,2]
[408136663,1773163873416,-4445.09178754,0.00019726,2]
[408136664,1773163873441,-1585.48,0.00019726,2]
[408136665,1773163873465,-656.07,0.00019726,2]
[408136666,1773163873487,-417.83615008,0.00019726,2]
[408136667,1773163873509,-500.0,0.00019726,2]
[408136668,1773163873534,-504.53,0.00019726,2]
[408136669,1773163873558,-3956.83,0.00019726,2]
[408136670,1773163873584,-1585.48,0.00019726,2]
[408136671,1773163873607,-1992.54,0.00019726,2]
[408136672,1773163873630,-2947.56,0.00019726,2]
[408136673,1773163873653,-656.07,0.00019726,2]
[408136674,1773163873675,-391.81888281,0.00019726,2]
[408136698,1773164803083,-500.0,0.000145,2]
[408136699,1773164803466,-270.0,0.000145,2]
[408136700,1773164803497,-250.0,0.00015,2]
[408136701,1773164803517,-600.18,0.00015,30]
[408136702,1773164803537,-200.0,0.00015343,2]
[408136703,1773164803560,-217.91540261,0.00015594,2]
[408136704,1773164803583,-1600.0,0.00015694,2]
[408136705,1773164803603,-1239.83,0.00015714,2]
[408136706,1773164803624,-217.91540261,0.00015839,2]
[408136707,1773164803645,-433.52903426,0.0001589,2]
[408136727,1773164934562,190.0,0.00014158,120]
[408136737,1773165031868,-299.25807466,0.000158,2]
[408136738,1773165031878,-283.0,0.0001589,2]
[408136739,1773165031887,-1566.47096574,0.0001589,2]
[408136740,1773165031897,-157.7007942,0.000159,2]
[408136741,1773165031907,-4152.23536529,0.000159,2]
[408136742,1773165031917,-790.24070377,0.000159,2]
[408136743,1773165031927,-10300.61112563,0.000159,2]
[408136744,1773165031936,-300.0,0.00015948,2]
[408136745,1773165031946,-300.0,0.00015948,2]
[408136746,1773165031955,-1200.0,0.00015948,2]
[408136747,1773165031965,-300.0,0.00015948,2]
[408136748,1773165031975,-300.0,0.00015949,2]
[408136749,1773165031984,-234.81595298,0.00015973,2]
[408136750,1773165031994,-500.0,0.00015973,2]
[408136751,1773165032003,-500.0,0.00015973,2]
[408136752,1773165032012,-500.0,0.00015973,2]
[408136753,1773165032021,-500.0,0.00015973,2]
[408136754,1773165032031,-500.0,0.00015973,2]
[408136755,1773165032041,-500.0,0.00015973,2]
[408136756,1773165032050,-322.85507045,0.00015973,2]
[408136757,1773165032059,-500.0,0.00015973,2]
[408136758,1773165032069,-490.11,0.00015974,3]
[408136759,1773165032078,-632.49635795,0.00015974,2]
[408136761,1773165032087,-4838.77113528,0.00015983,2]
[408136763,1773165032097,-542.59073283,0.00015983,2]
[408136765,1773165032106,-41908.56304792,0.00015984,2]
[408136766,1773165032118,-525.79675041,0.00015984,2]
[408136767,1773165032129,-7089.5,0.00015984,2]
[408136768,1773165032140,-5658.0,0.00015984,2]
[408136769,1773165032152,-342.965,0.00015984,2]
[408136771,1773165032163,-17755.00000005,0.00015984,2]
[408136773,1773165032176,-1122631.28426203,0.00015984,2]
[408136776,1773165032187,-176835.67412509,0.00015984,2]
[408136778,1773165032202,-96928.7295145,0.00015984,2]
[408136780,1773165032211,-797.34863583,0.00016,3]
[408136782,1773165032221,-1840.23528542,0.00016,3]
[408136784,1773165032231,-1309.23,0.00016001,2]
[408136786,1773165032241,-151.0,0.00016074,2]
[408136788,1773165032251,-216.16485696,0.00016074,2]
[408136790,1773165032260,-550.0,0.00016083,2]
[408136792,1773165032270,-499.3082,0.00016084,2]
[408136794,1773165032284,-224.8796,0.00016084,2]
[408136796,1773165032293,-400.0486083,0.00016084,2]
[408136798,1773165032303,-217.91540261,0.00016084,2]
[408136800,1773165032313,-2865.18007939,0.00016084,2]
[408136802,1773165032322,-598.0,0.00016101,2]
[408136806,1773165032755,-1073.0,0.00016155,2]
[408136807,1773165032777,-500.37976244,0.00016173,2]
[408136808,1773165032786,-362.92309154,0.00016173,2]
[408136809,1773165032795,-500.0,0.00016173,2]
[408136810,1773165032804,-500.0,0.00016173,2]
[408136811,1773165032813,-161.86139248,0.00016173,2]
[408136812,1773165032822,-2970.368,0.00016181,2]
[408136813,1773165032832,-176.813,0.00016181,2]
[408136814,1773165032841,-2002.51929351,0.00016183,2]
[408136815,1773165032851,-673.09874876,0.00016183,5]
[408136816,1773165032860,-350.0,0.00016183,2]
[408136817,1773165032869,-350.0,0.00016183,2]
[408136818,1773165032878,-303.80696665,0.00016183,2]
[408136819,1773165032887,-500.0,0.00016183,2]
[408136820,1773165032896,-500.0,0.00016183,2]
[408136821,1773165032905,-500.0,0.00016183,2]
[408136822,1773165032915,-500.0,0.00016183,2]
[408136823,1773165032925,-500.0,0.00016183,2]
[408136824,1773165032935,-462.18232633,0.00016183,2]
[408136825,1773165032944,-500.0,0.00016183,2]
[408136826,1773165032953,-500.0,0.00016183,2]
[408136827,1773165032962,-500.0,0.00016183,2]
[408136828,1773165032971,-500.0,0.00016183,2]
[408136829,1773165032981,-500.0,0.00016183,2]
[408136830,1773165032990,-500.0,0.00016183,2]
[408136831,1773165032999,-500.0,0.00016183,2]
[408136832,1773165033009,-32933.015,0.00016184,2]
[408136833,1773165033018,-1000.0,0.00016184,2]
[408136834,1773165033027,-29.23785386,0.00016283,2]
[408136835,1773165033039,-470.76214614,0.00016283,2]
[408136836,1773165033049,-509.45035815,0.00016283,2]
[408136837,1773165033058,-500.0,0.00016283,2]
[408136838,1773165033067,-500.0,0.00016283,2]
[408136839,1773165033080,-500.0,0.00016283,2]
[408136840,1773165033090,-500.0,0.00016283,2]
[408136841,1773165033099,-500.0,0.00016283,2]
[408136842,1773165033108,-500.0,0.00016283,2]
[408136843,1773165033118,-500.0,0.00016283,2]
[408136844,1773165033127,-500.0,0.00016283,2]
[408136845,1773165033137,-500.0,0.00016283,2]
[408136846,1773165033146,-500.0,0.00016283,2]
[408136847,1773165033155,-500.0,0.00016283,2]
[408136848,1773165033165,-500.0,0.00016283,2]
[408136849,1773165033174,-500.0,0.00016283,2]
[408136850,1773165033183,-500.0,0.00016283,2]
[408136851,1773165033193,-500.0,0.00016283,2]
[408136852,1773165033207,-500.0,0.00016283,2]
[408136853,1773165033216,-504.92020981,0.00016283,2]
[408136854,1773165033225,-500.0,0.00016283,2]
[408136855,1773165033234,-500.0,0.00016283,2]
[408136856,1773165033246,-500.0,0.00016283,2]
[408136857,1773165033255,-500.0,0.00016283,2]
[408136858,1773165033266,-500.0,0.00016283,2]
[408136859,1773165033276,-500.0,0.00016283,2]
[408136860,1773165033286,-500.0,0.00016283,2]
[408136861,1773165033295,-500.0,0.00016283,2]
[408136862,1773165033305,-1195.22,0.00016283,2]
[408136863,1773165033314,-500.0,0.00016283,2]
[408136864,1773165033324,-500.0,0.00016283,2]
[408136865,1773165033333,-380.3,0.00016438,2]
[408136866,1773165033343,-4152.23536526,0.00016471,2]
[408136867,1773165033352,-160.0,0.00016503,2]
[408136868,1773165033362,-2865.1800793,0.00016508,2]
[408136869,1773165033371,-1000.0,0.00016521,2]
[408136870,1773165033380,-175.0,0.00016551,2]
[408136871,1773165033391,-1195.22,0.00016557,2]
[408136872,1773165033400,-1000.0,0.00016721,2]
[408136873,1773165033410,-1195.22,0.00016831,2]
[408136874,1773165033419,-2865.1800793,0.00016932,2]
[408136875,1773165033429,-510.0,0.00017,2]
[408136876,1773165033438,-4152.23536526,0.00017043,2]
[408136877,1773165033448,-1195.22,0.00017105,2]
[408136878,1773165033457,-935.0,0.00017209,2]
[408136879,1773165033467,-239.55,0.00017221,2]
[408136880,1773165033476,-2865.1800793,0.00017356,2]
[408136881,1773165033485,-1195.22,0.00017379,2]
[408136882,1773165033494,-286.0,0.00017437,2]
[408136883,1773165033504,-420.0,0.00017437,2]
[408136884,1773165033514,-300.0,0.00017438,2]
[408136885,1773165033524,-2500.0,0.00017479,2]
[408136886,1773165033534,-2500.0,0.00017479,2]
[408136887,1773165033543,-2550.0,0.00017479,2]
[408136888,1773165033554,-195.0,0.00017479,2]
[408136889,1773165033563,-197.84836511,0.00017479,2]
[408136890,1773165033572,-600.0,0.00017479,2]
[408136891,1773165033582,-300.0,0.00017479,2]
[408136892,1773165033592,-194.57847078,0.00017479,2]
[408136893,1773165033602,-1680.0,0.00017525,2]
[408136894,1773165033612,-181.81,0.00017582,2]
[408136895,1773165033621,-1195.22,0.00017653,2]
[408136896,1773165033630,-1600.0,0.00017656,2]
[408136897,1773165033640,-500.0,0.00017716,2]
[408136898,1773165033650,-500.0,0.00017716,2]
[408136899,1773165033660,-17534.5,0.00017728,2]
[408136900,1773165033669,-2865.1800793,0.0001778,2]
[408136901,1773165033679,-800.0,0.00017808,2]
[408136902,1773165033690,-380.3,0.0001788,2]
[408136903,1773165033700,-1195.22,0.00017927,2]
[408136904,1773165033710,-400.0486083,0.00017992,2]
[408136905,1773165033720,-500.0,0.00018015,2]
[408136906,1773165033731,-151.0,0.00018015,2]
[408136907,1773165033741,-500.0,0.00018015,2]
[408136908,1773165033750,-174.61919142,0.00018015,2]
[408136909,1773165033759,-500.0,0.0001807,2]
[408136910,1773165033768,-151.0,0.0001807,2]
[408136911,1773165033776,-500.0,0.00018125,2]
[408136912,1773165033784,-151.0,0.00018125,2]
[408136913,1773165033793,-500.0,0.00018171,2]
[408136914,1773165033802,-500.0,0.0001818,2]
[408136915,1773165033811,-151.0,0.0001818,2]
[408136916,1773165033820,-804.4,0.00018182,2]
[408136917,1773165033829,-1195.23410102,0.00018201,2]
[408136918,1773165033838,-2865.1800793,0.00018204,2]
[408136919,1773165033848,-500.0,0.00018235,2]
[408136920,1773165033857,-151.0,0.00018235,2]
[408136921,1773165033868,-500.0,0.0001829,2]
[408136922,1773165033878,-151.0,0.0001829,2]
[408136923,1773165033887,-500.0,0.00018345,2]
[408136924,1773165033897,-151.0,0.00018345,2]
[408136925,1773165033907,-500.0,0.000184,2]
[408136926,1773165033918,-151.0,0.000184,2]
[408136927,1773165033928,-831.0,0.00018415,2]
[408136928,1773165033938,-500.0,0.00018455,2]
[408136929,1773165033949,-288.79400444,0.00018455,2]
[408136930,1773165033958,-500.0,0.0001851,2]
[408136931,1773165033968,-356.9545172,0.00018558,2]
[408136932,1773165033979,-500.0,0.00018565,2]
[408136933,1773165033989,-500.0,0.0001862,2]
[408136934,1773165033999,-2865.1800793,0.00018628,2]
[408136935,1773165034009,-804.4,0.00018637,2]
[408136936,1773165034021,-81553.06497497,0.00018654,2]
[408136937,1773165034034,-1254.41808677,0.00018654,2]
[408136938,1773165034046,-66180.51023146,0.00018654,2]
[408136939,1773165034058,-510.0,0.00018658,3]
[408136940,1773165034068,-786.08571,0.000187,2]
[408136941,1773165034078,-172.91703981,0.00018716,2]
[408136942,1773165034088,-356.95451716,0.00018826,2]
[408136943,1773165034097,-2217.0,0.00018877,2]
[408136944,1773165034107,-3026.15855569,0.000189,2]
[408136945,1773165034116,-500.0,0.00018902,2]
[408136946,1773165034125,-163.9232874,0.00018903,2]
[408136947,1773165034135,-71636.77407752,0.00018903,2]
[408136950,1773165037913,-400.93977782,0.00016344,2]
[408136951,1773165037968,-9899.67134775,0.00016344,2]
[408136952,1773165037978,-3069.60377097,0.00017614,2]
[408136953,1773165038023,-1082.63159429,0.00017614,2]
[408136954,1773165038033,-4152.23536526,0.00018186,2]
[408136955,1773165038042,-1880.13304045,0.00018903,2]
[408136956,1773165038079,-1464.81049235,0.00018903,2]
[408136965,1773165042189,-272.926631,0.00016789,2]
[408136966,1773165042204,-10027.68449457,0.00016789,2]
[408136967,1773165042213,-7975.38988822,0.00018903,2]
[408136968,1773165042456,-154444.00124356,0.00018903,2]
[408136969,1773165042468,-1042.0,0.00018988,2]
[408136970,1773165042478,-1342.0,0.00018988,2]
[408136971,1773165042489,-619.0,0.00018988,2]
[408136972,1773165042499,-3750.0,0.00018988,2]
[408136973,1773165042509,-3885.885,0.00018988,2]
[408136974,1773165042519,-414.0,0.00018988,2]
[408136975,1773165042530,-13667.64153885,0.00019,2]
[408136976,1773165042541,-202.15363139,0.00019,2]
[408136977,1773165042550,-1000.0,0.00019,2]
[408136978,1773165042560,-2865.1800793,0.00019052,2]
[408136979,1773165042569,-587.0,0.00019066,2]
[408136981,1773165042578,-804.4,0.00019091,2]
[408136983,1773165042587,-356.95451716,0.00019095,2]
[408136984,1773165042597,-1043.67,0.00019178,2]
[408136985,1773165042607,-787.0,0.00019178,2]
[408136986,1773165042616,-2351.0,0.00019258,2]
[408136987,1773165042625,-500.0,0.00019273,2]
[408136988,1773165042634,-1000.0,0.00019274,2]
[408136989,1773165042646,-380.3,0.00019322,2]
[408136990,1773165042656,-884.65761817,0.00019331,2]
[408136991,1773165042665,-9999.99,0.00019339,2]
[408136992,1773165042675,-9999.99,0.00019339,2]
[408136993,1773165042684,-19999.99,0.00019339,2]
[408136994,1773165042693,-150.99,0.00019339,2]
[408136995,1773165042702,-1545.41,0.00019339,2]
[408136996,1773165042711,-9999.99,0.00019339,2]
[408136998,1773165042720,-3715.38,0.00019339,2]
[408136999,1773165042730,-6029.74,0.00019339,2]
[408137000,1773165042739,-869.83,0.00019339,2]
[408137001,1773165042749,-52496.5,0.00019339,2]
[408137002,1773165042760,-983.1,0.00019339,2]
[408137003,1773165042769,-313.56,0.00019339,2]
[408137004,1773165042778,-299.99,0.00019339,7]
[408137005,1773165042787,-150.99,0.00019339,2]
[408137006,1773165042797,-356.95451716,0.00019363,2]
[408137007,1773165042806,-500.0,0.00019449,2]
[408137008,1773165042815,-150.0,0.00019449,2]
[408137009,1773165042824,-500.0,0.00019449,2]
[408137010,1773165042833,-250.0,0.00019449,2]
[408137011,1773165042843,-150.0,0.00019449,2]
[408137012,1773165042853,-500.0,0.00019449,2]
[408137013,1773165042862,-150.0,0.00019449,2]
[408137014,1773165042872,-500.0,0.00019449,2]
[408137015,1773165042881,-500.0,0.00019449,2]
[408137016,1773165042892,-200.0,0.00019449,2]
[408137017,1773165042901,-150.0,0.00019449,2]
[408137018,1773165042910,-500.0,0.00019452,2]
[408137019,1773165042919,-500.0,0.00019452,2]
[408137020,1773165042929,-500.0,0.00019452,2]
[408137021,1773165042938,-500.0,0.00019452,2]
[408137022,1773165042948,-150.81923528,0.00019452,2]
[408137023,1773165042957,-500.0,0.00019452,2]
[408137024,1773165042970,-2865.1800793,0.00019476,2]
[408137025,1773165042980,-500.0,0.00019504,2]
[408137026,1773165042989,-150.0,0.00019504,2]
[408137027,1773165042998,-500.0,0.00019504,2]
[408137028,1773165043007,-150.0,0.00019504,2]
[408137029,1773165043017,-526.0,0.00019504,2]
[408137030,1773165043027,-150.0,0.00019504,2]
[408137031,1773165043036,-500.0,0.00019504,2]
[408137032,1773165043046,-500.0,0.00019504,2]
[408137033,1773165043055,-150.0,0.00019504,2]
[408137034,1773165043064,-500.0,0.00019507,2]
[408137035,1773165043073,-500.0,0.00019507,2]
[408137036,1773165043083,-500.0,0.00019507,2]
[408137037,1773165043091,-500.0,0.00019507,2]
[408137038,1773165043101,-505.89870401,0.00019507,2]
[408137039,1773165043110,-1585.91677,0.0001953,2]
[408137040,1773165043118,-804.4,0.00019546,2]
[408137041,1773165043128,-1000.0,0.00019548,2]
[408137042,1773165043137,-575.0,0.00019559,2]
[408137043,1773165043146,-200.0,0.00019559,2]
[408137044,1773165043155,-500.0,0.00019559,2]
[408137045,1773165043164,-150.0,0.00019559,2]
[408137046,1773165043173,-150.0,0.00019559,2]
[408137047,1773165043182,-500.0,0.00019559,2]
[408137048,1773165043191,-500.0,0.00019559,2]
[408137049,1773165043203,-150.0,0.00019559,2]
[408137050,1773165043212,-629.97673045,0.00019562,2]
[408137051,1773165043221,-302.52670452,0.00019562,2]
[408137052,1773165043230,-500.0,0.00019562,2]
[408137053,1773165043239,-500.0,0.00019562,2]
[408137054,1773165043249,-1585.91677,0.0001958,2]
[408137055,1773165043258,-150.0,0.00019613,2]
[408137056,1773165043268,-150.0,0.00019613,2]
[408137057,1773165043279,-500.0,0.00019613,2]
[408137058,1773165043288,-500.0,0.00019613,2]
[408137059,1773165043297,-150.0,0.00019613,2]